bitfinex/quotes_ETHUSD_20250711
["timestamp","ask_amount","ask_price","bid_price","bid_amount"]
[1752264060724,3.3711,2999.5,2999.4,7.0719]
[1752264060922,4.4811,2999.5,2999.4,2.3809]
[1752264061242,4.4811,2999.5,2999.4,7.7873]
[1752264061706,4.4811,2999.5,2999.4,2.5473]
[1752264061909,4.4811,2999.5,2999.4,7.7853]
[1752264062144,4.4811,2999.5,2999.4,17.7853]
[1752264063211,4.4811,2999.5,2999.4,21.11930013]
[1752264063424,5.5911,2999.5,2999.4,17.7853]
[1752264063726,5.5911,2999.5,2999.4,17.7863]
[1752264064251,5.5911,2999.5,2999.4,17.7843]
[1752264065228,5.5911,2999.5,2999.4,11.7386]
[1752264065560,8.28141,2999.5,2999.4,0.001]
[1752264065720,9.39141,2999.5,2999.4,13.229]
[1752264066964,9.39141,2999.5,2999.4,7.989]
[1752264067133,9.31801,2999.5,2999.4,13.225]
[1752264068121,10.42801,2999.5,2999.4,13.225]
[1752264068317,10.42801,2999.5,2999.4,7.988]
[1752264068543,10.42801,2999.5,2999.4,13.224]
[1752264070258,10.42801,2999.5,2999.4,7.989]
[1752264070259,10.42021,2999.5,2999.4,7.989]
[1752264070757,1.7678,2999.4,2999.0,0.001]
[1752264070957,1.6014,2999.2,2999.0,0.001]
[1752264071319,0.4682,2999.1,2999.0,0.001]
[1752264071521,0.4682,2999.1,2999.0,5.233]
[1752264072458,9.47291,2999.5,2999.2,0.55]
[1752264072459,8.72,2999.5,2999.2,0.55]
[1752264072634,8.72,2999.5,2999.4,10.55]
[1752264072833,8.72,2999.5,2999.4,10.7164]
[1752264073165,9.83,2999.5,2999.4,10.1664]
[1752264074157,9.83,2999.5,2999.4,10.0]
[1752264075631,10.94,2999.5,2999.4,17.989]
[1752264077060,10.94,2999.5,2999.4,19.03862686]
[1752264077250,10.94,2999.5,2999.4,19.64504071]
[1752264077454,10.94,2999.5,2999.4,19.90474071]
[1752264077764,10.94,2999.5,2999.4,21.40974071]
[1752264078064,12.05,2999.5,2999.4,21.40974071]
[1752264079468,12.05,2999.5,2999.4,21.15004071]
[1752264080470,13.16,2999.5,2999.4,21.15004071]
[1752264080769,13.16,2999.5,2999.4,24.74374084]
[1752264080942,1.11,2999.8,2999.7,15.3886667]
[1752264081139,1.11,2999.8,2999.7,31.41924691]
[1752264081328,1.11,2999.8,2999.7,28.06374109]
[1752264081838,1.11,2999.8,2999.7,27.80404109]
[1752264082038,1.11,2999.8,2999.7,27.30441423]
[1752264082264,1.11,2999.8,2999.7,22.06741423]
[1752264082430,1.11,2999.8,2999.7,5.237]
[1752264082825,2.22,2999.8,2999.7,5.237]
[1752264083027,2.673,2999.8,2999.7,5.237]
[1752264083349,2.8394,2999.8,2999.7,5.237]
[1752264083749,2.3864,2999.8,2999.7,5.237]
[1752264083951,2.22,2999.8,2999.7,15.237]
[1752264084156,2.22,2999.8,2999.7,10.0]
[1752264084476,1.5808,2999.7,2999.1,0.41792385]
[1752264084790,0.1664,2999.6,2999.1,0.1664]
[1752264084945,0.1664,2999.3,2999.2,5.235]
[1752264085144,0.1664,2999.3,2999.2,15.235]
[1752264085340,0.6194,2999.3,2999.2,5.235]
[1752264085548,0.1664,2999.3,2999.2,5.235]
[1752264085866,0.1664,2999.3,2999.2,13.223]
[1752264086070,0.1664,2999.3,2999.2,23.223]
[1752264087570,1.2764,2999.3,2999.2,23.223]
[1752264087972,1.7294,2999.3,2999.2,23.223]
[1752264088684,1.2764,2999.3,2999.2,23.223]
[1752264088882,1.7294,2999.3,2999.2,17.988]
[1752264089086,1.7294,2999.3,2999.2,23.217]
[1752264089381,1.7367,2999.3,2999.2,23.217]
[1752264089583,3.49117,2999.3,2999.2,7.988]
[1752264089769,3.49117,2999.3,2999.2,13.217]
[1752264090071,4.60117,2999.3,2999.2,13.217]
[1752264090270,4.60117,2999.3,2999.2,13.218]
[1752264090661,4.4275,2999.3,2999.2,13.218]
[1752264090979,2.8467,2999.3,2999.2,13.218]
[1752264091697,2.3937,2999.3,2999.2,13.218]
[1752264091990,2.3937,2999.3,2999.2,23.71762686]
[1752264092488,3.5037,2999.3,2999.2,23.71762686]
[1752264093056,3.3373,2999.3,2999.2,25.34352686]
[1752264094752,4.4473,2999.3,2999.2,25.34352686]
[1752264095883,4.4473,2999.3,2999.2,25.60322686]
[1752264097289,5.5573,2999.3,2999.2,25.60322686]
[1752264097488,5.5573,2999.3,2999.2,26.04923424]
[1752264097788,5.5573,2999.3,2999.2,25.76962686]
[1752264098366,5.5573,2999.3,2999.2,29.54985669]
[1752264098571,5.5573,2999.3,2999.2,29.10384931]
[1752264100391,6.6673,2999.3,2999.2,29.10384931]
[1752264101606,6.6673,2999.3,2999.2,21.11584931]
[1752264102816,7.7773,2999.3,2999.2,21.11584931]
[1752264104004,7.7773,2999.3,2999.2,20.85614931]
[1752264104310,1.11,2999.6,2999.5,3.33388898]
[1752264104602,1.11,2999.6,2999.5,16.8661]
[1752264104784,1.11,2999.6,2999.5,10.1664]
[1752264104973,1.11,2999.6,2999.5,15.3804]
[1752264105471,2.22,2999.6,2999.5,15.3804]
[1752264105670,2.22,2999.6,2999.5,27.5204]
[1752264107314,2.2538,2999.6,2999.5,27.5204]
[1752264108009,3.3638,2999.6,2999.5,27.5204]
[1752264109336,3.8,2999.6,2999.5,27.348]
[1752264110294,4.91,2999.6,2999.5,27.348]
[1752264110923,4.91,2999.6,2999.5,27.84762686]
[1752264110924,4.4738,2999.6,2999.5,27.84762686]
[1752264111503,4.4738,2999.6,2999.5,29.53972686]
[1752264112814,5.5838,2999.6,2999.5,29.53972686]
[1752264115196,6.6938,2999.6,2999.5,29.53972686]
[1752264116228,6.6938,2999.6,2999.5,24.33172686]
[1752264116428,6.6938,2999.6,2999.5,29.53072686]
[1752264117137,6.6938,2999.6,2999.5,28.00302686]
[1752264117515,7.8038,2999.6,2999.5,28.00302686]
[1752264118017,7.8038,2999.6,2999.5,28.00202686]
[1752264119638,8.24,2999.6,2999.5,22.80602686]
[1752264119929,9.35,2999.6,2999.5,17.332]
[1752264120135,8.9138,2999.6,2999.5,27.332]
[1752264120338,8.9138,2999.6,2999.5,29.64192686]
[1752264120946,8.9138,2999.6,2999.5,27.99802686]
[1752264121148,9.35,2999.6,2999.5,27.332]
[1752264121346,9.35,2999.6,2999.5,27.335]
[1752264121347,11.0033,2999.6,2999.5,27.335]
[1752264122263,12.1133,2999.6,2999.5,27.335]
[1752264122641,10.0238,2999.6,2999.5,27.83462686]
[1752264122836,10.0238,2999.6,2999.5,28.00102686]
[1752264123252,10.0238,2999.6,2999.5,27.83262686]
[1752264123433,10.46,2999.6,2999.5,27.83262686]
[1752264123827,10.0238,2999.6,2999.5,27.83262686]
[1752264124964,11.1338,2999.6,2999.5,27.83262686]
[1752264125344,11.57,2999.6,2999.5,27.83262686]
[1752264127667,14.2913,2999.6,2999.5,27.331]
[1752264128753,12.2438,2999.6,2999.5,27.83062686]
[1752264129138,12.68,2999.6,2999.5,22.14]
[1752264129338,12.68,2999.6,2999.5,27.328]
[1752264129534,14.15161524,2999.6,2999.5,22.14]
[1752264129984,14.15161524,2999.6,2999.5,27.328]
[1752264130275,15.26161524,2999.6,2999.5,27.328]
[1752264130773,16.90651524,2999.6,2999.5,27.328]
[1752264131875,16.90651524,2999.6,2999.5,17.328]
[1752264132074,16.90651524,2999.6,2999.5,12.14]
[1752264132363,17.45651524,2999.6,2999.5,12.14]
[1752264132537,18.56651524,2999.6,2999.5,17.325]
[1752264134448,18.56651524,2999.6,2999.5,12.14]
[1752264134961,18.56851524,2999.6,2999.5,17.323]
[1752264135161,19.67851524,2999.6,2999.5,17.323]
[1752264136174,2.125,2999.4,2999.3,0.001]
[1752264136380,2.125,2999.4,2999.3,7.989]
[1752264136573,2.5612,2999.4,2999.3,7.989]
[1752264137346,2.5612,2999.4,2999.3,13.171]
[1752264137578,3.6712,2999.4,2999.3,13.171]
[1752264137878,5.94151068,2999.4,2999.3,13.171]
[1752264139878,7.05151068,2999.4,2999.3,13.171]
[1752264140858,2.22,2999.4,2999.3,23.67062686]
[1752264141492,2.6911,2999.4,2999.3,23.67062686]
[1752264142054,3.2411,2999.4,2999.3,23.67062686]
[1752264142306,4.3511,2999.4,2999.3,23.171]
[1752264142464,6.34041,2999.4,2999.3,23.171]
[1752264142663,7.94181,2999.4,2999.3,23.171]
[1752264142864,5.31931,2999.4,2999.3,23.171]
[1752264143100,5.31931,2999.4,2999.3,23.67062686]
[1752264143101,3.9675,2999.4,2999.3,23.67062686]
[1752264143706,3.4964,2999.4,2999.3,23.67062686]
[1752264143870,3.9675,2999.4,2999.3,23.66862686]
[1752264144209,3.9675,2999.4,2999.3,23.169]
[1752264144706,5.0775,2999.4,2999.3,23.169]
[1752264145264,5.0775,2999.4,2999.3,23.66862686]
[1752264145999,4.6064,2999.4,2999.3,23.66862686]
[1752264147078,6.1875,2999.4,2999.3,23.66862686]
[1752264147398,8.36045,2999.4,2999.3,17.989]
[1752264147599,8.91045,2999.4,2999.3,23.165]
[1752264148607,5.7164,2999.4,2999.3,25.23242686]
[1752264148764,5.7164,2999.4,2999.3,25.67843424]
[1752264148962,5.7502,2999.4,2999.3,25.67843424]
[1752264149667,6.8602,2999.4,2999.3,25.23242686]
[1752264152671,7.9702,2999.4,2999.3,25.23242686]
[1752264155080,9.0802,2999.4,2999.3,25.23242686]
[1752264156470,8.9138,2999.4,2999.3,25.23242686]
[1752264157707,10.0238,2999.4,2999.3,25.23242686]
[1752264158422,12.0048,2999.4,2999.3,17.989]
[1752264158601,12.73834853,2999.4,2999.3,13.16]
[1752264159114,13.28834853,2999.4,2999.3,13.16]
[1752264159424,13.28834853,2999.4,2999.3,7.989]
[1752264159908,13.28834853,2999.4,2999.3,13.16]
[1752264160066,14.39834853,2999.4,2999.3,7.989]
[1752264160465,14.39834853,2999.4,2999.3,13.16]
[1752264160702,14.39834853,2999.4,2999.3,7.989]
[1752264160898,14.39834853,2999.4,2999.3,13.16]
[1752264162489,15.50834853,2999.4,2999.3,13.16]
[1752264164104,15.50834853,2999.4,2999.3,7.989]
[1752264164297,15.50834853,2999.4,2999.3,13.16]
[1752264165013,15.50834853,2999.4,2999.3,7.989]
[1752264165306,15.50834853,2999.4,2999.0,4.155]
[1752264165307,2.0606,2999.1,2999.0,4.155]
[1752264165505,2.2833,2999.1,2999.0,17.314]
[1752264165707,0.55,2998.8,2998.3,0.001]
[1752264165909,1.5449,2998.5,2998.4,13.16]
[1752264166205,2.22549,2998.5,2998.4,13.16]
[1752264167126,2.22549,2998.5,2998.4,7.989]
[1752264167295,2.22549,2998.5,2998.4,13.16]
[1752264167682,2.22549,2998.5,2998.4,7.989]
[1752264167683,1.23059,2998.5,2998.4,7.989]
[1752264167917,0.7164,2998.4,2998.3,0.001]
[1752264168123,0.967099,2998.4,2998.3,13.161]
[1752264168426,2.965599,2998.4,2998.3,13.161]
[1752264169893,2.999399,2998.4,2998.3,13.66062686]
[1752264170305,4.109399,2998.4,2998.3,13.66062686]
[1752264171626,4.109399,2998.4,2998.3,13.161]
[1752264172596,5.219399,2998.4,2998.3,13.161]
[1752264173589,5.219399,2998.4,2998.3,7.99]
[1752264173814,5.219399,2998.4,2998.3,13.162]
[1752264175524,6.329399,2998.4,2998.3,13.162]
[1752264176615,6.354899,2998.4,2998.3,7.991]
[1752264176928,4.784499,2998.4,2998.3,7.991]
[1752264177342,6.354899,2998.4,2998.3,7.991]
[1752264177500,0.55,2998.2,2997.2,0.001]
[1752264177686,2.1204,2998.1,2997.2,0.001]
[1752264177890,2.574,2998.1,2998.0,5.174]
[1752264178225,2.574,2998.1,2997.2,0.001]
[1752264178226,2.1204,2997.9,2997.2,0.001]
[1752264178429,2.39444,2997.9,2997.2,0.001]
[1752264178786,2.84804,2997.9,2997.2,0.001]
[1752264179187,2.84804,2997.9,2997.8,5.174]
[1752264180188,3.95804,2997.9,2997.8,5.174]
[1752264180984,1.11,2997.9,2997.8,5.174]
[1752264181204,1.11,2997.9,2997.8,17.98093424]
[1752264181402,1.11,2997.9,2997.8,18.31686476]
[1752264181629,1.11,2997.9,2997.8,17.87085738]
[1752264182516,1.11,2997.9,2997.8,30.61277264]
[1752264182719,2.22,2997.9,2997.8,30.77917264]
[1752264182946,2.22,2997.9,2997.8,30.33316526]
[1752264184061,2.22,2997.9,2997.8,12.60455738]
[1752264184249,2.22,2997.9,2997.8,18.03725738]
[1752264184432,2.22,2997.9,2997.8,17.53492686]
[1752264185144,3.33,2997.9,2997.8,17.53492686]
[1752264185757,3.33,2997.9,2997.8,25.52692686]
[1752264186755,3.33,2997.9,2997.8,20.09422686]
[1752264186959,4.6666,2997.9,2997.8,7.993]
[1752264187162,4.6666,2997.9,2997.8,13.166]
[1752264187658,5.7766,2997.9,2997.8,13.166]
[1752264187857,5.323,2997.9,2997.8,23.166]
[1752264188061,5.7766,2997.9,2997.8,23.166]
[1752264188261,5.7766,2997.9,2997.8,7.993]
[1752264188559,5.7766,2997.9,2997.2,0.001]
[1752264188560,0.7164,2997.8,2997.2,0.001]
[1752264188761,0.55,2997.6,2997.3,13.165]
[1752264189060,0.55,2997.4,2997.3,13.165]
[1752264189233,0.55,2997.4,2997.3,23.165]
[1752264189441,0.55,2997.8,2997.4,10.0]
[1752264189649,0.55,2997.8,2997.5,5.67162686]
[1752264189859,1.66,2997.8,2997.5,5.67162686]
[1752264190174,0.55,2997.6,2997.5,5.67162686]
[1752264190326,0.55,2997.6,2997.5,15.67162686]
[1752264191181,0.55,2997.7,2997.5,5.67162686]
[1752264192328,1.66,2997.7,2997.5,5.67162686]
[1752264194859,2.77,2997.7,2997.5,5.172]
[1752264195262,2.22,2997.7,2997.5,5.172]
[1752264195766,0.1664,2997.6,2997.5,5.67162686]
[1752264197179,0.1664,2997.6,2997.5,8.05029537]
[1752264197180,1.11,2997.6,2997.5,8.05029537]
[1752264197380,1.11,2997.6,2997.5,8.01693424]
[1752264197745,1.11,2997.6,2997.5,7.31222686]
[1752264198077,1.11,2997.6,2997.5,6.8126]
[1752264199578,2.22,2997.6,2997.5,6.8126]
[1752264199764,2.22,2997.6,2997.5,7.31014352]
[1752264200284,2.22,2997.6,2997.5,17.57084352]
[1752264201984,3.33,2997.6,2997.5,17.57084352]
[1752264203584,3.33,2997.6,2997.5,17.31114352]
[1752264204282,4.44,2997.6,2997.5,17.31114352]
[1752264205203,4.44,2997.6,2997.5,16.8126]
[1752264205383,4.44,2997.6,2997.5,10.001]
[1752264205585,4.44,2997.6,2997.5,15.173]
[1752264205790,4.44,2997.6,2997.5,0.001]
[1752264205997,4.44,2997.6,2997.5,5.173]
[1752264206405,4.44,2997.6,2997.5,15.173]
[1752264206766,5.55,2997.6,2997.5,15.173]
[1752264208600,5.55,2997.6,2997.5,15.93024352]
[1752264208808,5.55,2997.6,2997.5,17.24154352]
[1752264209025,5.5838,2997.6,2997.5,17.24154352]
[1752264209178,6.6938,2997.6,2997.5,17.24154352]
[1752264209518,6.6938,2997.6,2997.5,17.50124352]
[1752264210325,6.6938,2997.6,2997.5,18.05124352]
[1752264210479,6.6938,2997.6,2997.5,18.4972509]
[1752264211197,6.6938,2997.6,2997.5,21.83336432]
[1752264211603,7.8038,2997.6,2997.5,21.83336432]
[1752264213515,7.8038,2997.6,2997.5,18.4972509]
[1752264213730,7.8038,2997.6,2997.5,21.83336432]
[1752264214076,8.9138,2997.6,2997.5,21.83336432]
[1752264214618,8.9138,2997.6,2997.5,18.4972509]
[1752264214920,8.9138,2997.6,2997.5,12.87924352]
[1752264215131,8.9138,2997.6,2997.5,18.05024352]
[1752264216633,10.0238,2997.6,2997.5,21.38635694]
[1752264216840,10.0238,2997.6,2997.5,21.83236432]
[1752264217735,10.0238,2997.6,2997.5,21.38635694]
[1752264218636,10.0238,2997.6,2997.5,12.61954352]
[1752264218840,10.0238,2997.6,2997.5,17.79054352]
[1752264219142,11.1338,2997.6,2997.5,17.79054352]
[1752264220505,11.1338,2997.6,2997.5,21.38635694]
[1752264221112,2.22,2997.7,2997.6,13.33600213]
[1752264221413,3.33,2998.4,2998.1,15.48754578]
[1752264221749,3.33,2998.4,2998.1,21.4147893]
[1752264222044,3.33,2998.4,2998.1,18.24574352]
[1752264222206,3.33,2998.4,2998.1,21.5811893]
[1752264222740,3.33,2998.4,2998.1,18.24574352]
[1752264223418,3.33,2998.4,2998.1,17.98604352]
[1752264223839,2.22,2998.2,2998.1,17.98604352]
[1752264224541,2.22,2998.2,2998.1,10.1664]
[1752264224700,3.2931,2998.2,2998.1,15.169]
[1752264224906,3.2931,2998.2,2998.1,15.719]
[1752264225850,2.691,2998.2,2998.1,15.719]
[1752264226623,3.801,2998.2,2998.1,15.719]
[1752264226824,3.33,2998.2,2998.1,16.21654352]
[1752264227224,3.33,2998.2,2998.1,16.38294352]
[1752264228953,4.44,2998.2,2998.1,16.38294352]
[1752264231168,4.44,2998.2,2998.1,15.83294352]
[1752264231334,5.55,2998.2,2998.1,15.83294352]
[1752264232040,5.55,2998.2,2998.1,17.44604352]
[1752264232243,5.55,2998.2,2998.1,17.99604352]
[1752264233064,5.55,2998.2,2998.1,18.25574352]
[1752264233427,5.45706451,2998.2,2998.1,22.03719668]
[1752264233650,5.45706451,2998.2,2998.1,22.3731272]
[1752264233861,6.56706451,2998.2,2998.1,22.3731272]
[1752264234860,0.002,2999.0,2998.4,0.55]
[1752264235037,0.002,2999.0,2998.9,24.40540788]
[1752264235233,0.002,2999.0,2998.9,38.2273514]
[1752264235765,0.002,2999.0,2998.9,42.3813514]
[1752264236129,0.002,2999.0,2998.9,45.7159074]
[1752264236328,1.112,2999.0,2998.9,42.3813514]
[1752264238783,2.222,2999.0,2998.9,42.3813514]
[1752264239181,2.222,2999.0,2998.9,42.63216673]
[1752264239357,2.222,2999.0,2998.9,41.81272273]
[1752264239867,2.222,2999.0,2998.9,38.47816673]
[1752264241186,2.222,2999.0,2998.9,26.18225885]
[1752264241484,3.332,2999.0,2998.9,26.18225885]
[1752264241656,3.332,2999.0,2998.9,25.13471533]
[1752264242058,3.332,2999.0,2998.9,17.14471533]
[1752264242281,3.332,2999.0,2998.9,5.58421533]
[1752264242450,3.8044,2999.0,2998.9,5.58421533]
[1752264242876,3.8044,2999.0,2998.9,5.41681533]
[1752264243677,3.8044,2999.0,2998.9,15.41681533]
[1752264243878,4.442,2999.0,2998.9,10.41559132]
[1752264244080,4.442,2999.0,2998.9,12.55503484]
[1752264244388,4.442,2999.0,2998.9,17.72103484]
[1752264245069,4.442,2999.0,2998.9,11.04453484]
[1752264245273,4.442,2999.0,2998.9,15.74799132]
[1752264245674,4.442,2999.0,2998.9,27.89099132]
[1752264246185,4.9144,2999.0,2998.9,17.89099132]
[1752264246382,6.0244,2999.0,2998.9,17.89099132]
[1752264248386,6.0244,2999.0,2998.9,22.72499132]
[1752264248596,6.0244,2999.0,2998.9,27.89099132]
[1752264248859,6.662,2999.0,2998.9,27.89099132]
[1752264248983,6.662,2999.0,2998.9,30.85584222]
[1752264249300,6.662,2999.0,2998.9,30.30584222]
[1752264249603,6.662,2999.0,2998.9,28.90353484]
[1752264250896,6.662,2999.0,2998.9,28.44099132]
[1752264251265,7.772,2999.0,2998.9,28.44099132]
[1752264251695,7.772,2999.0,2998.9,28.90353484]
[1752264252101,7.772,2999.0,2998.9,23.73753484]
[1752264252302,9.0216,2999.0,2998.9,27.88999132]
[1752264252479,8.2444,2999.0,2998.9,22.72499132]
[1752264252685,8.2444,2999.0,2998.9,27.88999132]
[1752264253467,8.2444,2999.0,2998.9,12.39381533]
[1752264253700,10.9222,2999.0,2998.9,17.55881533]
[1752264254093,12.01442,2999.0,2998.9,17.55881533]
[1752264254471,12.01442,2999.0,2998.9,27.55881533]
[1752264256178,13.12442,2999.0,2998.9,27.55881533]
[1752264258487,14.23442,2999.0,2998.9,27.55881533]
[1752264258934,14.23442,2999.0,2998.9,22.143]
[1752264259135,14.23442,2999.0,2998.9,12.143]
[1752264259348,14.23442,2999.0,2998.9,17.307]
[1752264259519,12.66662,2999.0,2998.9,7.989]
[1752264259829,12.66662,2999.0,2997.9,0.001]
[1752264259830,1.8259,2998.9,2997.9,0.001]
[1752264260000,1.6595,2998.6,2997.9,0.001]
[1752264260432,0.4444,2998.5,2997.9,0.001]
[1752264260734,1.6595,2998.4,2997.9,0.001]
[1752264260931,1.6595,2998.4,2998.0,5.164]
[1752264261099,1.9605,2998.3,2998.0,5.164]
[1752264261299,1.5161,2998.1,2998.0,5.164]
[1752264261534,1.9605,2998.1,2998.0,5.164]
[1752264263405,3.0705,2998.1,2998.0,5.164]
[1752264265846,3.0705,2998.1,2998.0,13.155]
[1752264266051,4.1805,2998.1,2998.0,13.156]
[1752264267229,4.618155,2998.1,2998.0,13.156]
[1752264268549,5.728155,2998.1,2998.0,13.156]
[1752264271140,6.838155,2998.1,2998.0,13.156]
[1752264271321,6.4005,2998.1,2998.0,13.156]
[1752264273637,6.4005,2998.1,2998.0,23.156]
[1752264273861,7.5105,2998.1,2998.0,23.156]
[1752264274284,7.5105,2998.1,2998.0,17.992]
[1752264274455,7.5105,2998.1,2998.0,13.157]
[1752264274642,8.281155,2998.1,2998.0,13.157]
[1752264276270,9.391155,2998.1,2998.0,13.157]
[1752264276646,9.582455,2998.1,2998.0,7.992]
[1752264276852,9.582455,2998.1,2998.0,13.157]
[1752264277060,9.582455,2998.1,2998.0,7.992]
[1752264277360,1.7894,2998.0,2997.9,0.001]
[1752264277577,3.3905905,2998.0,2997.9,7.993]
[1752264277759,1.623,2997.9,2997.5,0.001]
[1752264277959,1.623,2997.8,2997.5,0.001]
[1752264278164,1.623,2997.6,2997.5,0.001]
[1752264278340,1.84474,2997.6,2997.5,5.166]
[1752264278538,3.39914,2997.6,2997.5,5.166]
[1752264281147,4.50914,2997.6,2997.5,5.166]
[1752264282686,4.50914,2997.6,2997.5,0.001]
[1752264282973,2.2029,2997.5,2997.2,0.001]
[1752264283174,13.94880788,2997.3,2997.2,0.001]
[1752264283384,3.503,2996.9,2995.5,0.001]
[1752264283688,13.94880788,2995.7,2995.5,0.001]
[1752264284013,3.19778079,2995.7,2995.5,0.001]
[1752264284183,2.2473,2995.7,2995.6,5.183]
[1752264284495,2.7973,2995.7,2995.6,5.183]
[1752264285893,2.7973,2995.7,2995.6,13.178]
[1752264286075,3.9073,2995.7,2995.6,13.178]
[1752264288693,5.0173,2995.7,2995.6,13.178]
[1752264288872,5.51903,2995.7,2995.6,13.178]
[1752264289078,4.96903,2995.7,2995.6,13.178]
[1752264291089,6.07903,2995.7,2995.6,13.178]
[1752264291302,3.48,2995.7,2995.6,23.178]
[1752264291867,3.9296,2995.7,2995.6,7.996]
[1752264292180,5.4435,2995.7,2995.6,13.173]
[1752264292902,18.28940788,2995.7,2995.6,7.998]
[1752264293111,18.83375788,2995.7,2995.6,7.998]
[1752264293278,17.31985788,2995.7,2995.6,7.998]
[1752264293465,0.7164,2995.6,2995.5,0.001]
[1752264293796,0.55,2995.4,2995.1,0.001]
[1752264294101,1.72029,2995.3,2995.1,0.001]
[1752264294307,1.72029,2995.3,2995.2,5.18]
[1752264295097,2.16989,2995.3,2995.2,5.18]
[1752264295765,2.16989,2995.3,2995.2,13.179]
[1752264296000,2.2855,2995.2,2995.0,7.999]
[1752264296192,1.569749,2995.1,2995.0,7.999]
[1752264296392,1.569749,2995.1,2995.0,13.183]
[1752264296702,1.019749,2995.1,2995.0,13.183]
[1752264298308,1.680149,2995.1,2995.0,13.183]
[1752264298509,1.26,2995.1,2995.0,13.183]
[1752264298672,1.26,2995.1,2995.0,23.183]
[1752264300716,1.4264,2995.1,2995.0,23.183]
[1752264300904,2.5364,2995.1,2995.0,23.183]
[1752264301471,2.37,2995.1,2995.0,24.9897]
[1752264301674,2.37,2995.1,2995.0,24.73]
[1752264302178,2.37,2995.1,2995.0,24.9897]
[1752264302876,2.37,2995.1,2995.0,29.04499816]
[1752264303206,2.1103,2995.1,2995.0,29.04499816]
[1752264303382,2.22,2995.1,2995.0,29.04499816]
[1752264303583,4.44,2995.7,2995.6,13.8882294]
[1752264303784,4.44,2995.7,2995.6,32.22023728]
[1752264304035,4.44,2995.7,2995.6,32.38663728]
[1752264305929,5.55,2995.7,2995.6,44.54463728]
[1752264306111,5.55,2995.7,2995.6,44.71364765]
[1752264306596,2.21759729,2995.7,2995.6,44.71364765]
[1752264306807,0.1664,2996.8,2996.1,10.0]
[1752264307134,0.1664,2996.8,2996.3,10.0]
[1752264307435,0.1664,2996.8,2996.6,1.6013]
[1752264307582,0.1664,2996.8,2996.7,20.361]
[1752264308235,1.2764,2996.8,2996.7,20.361]
[1752264309612,1.11,2996.8,2996.7,20.361]
[1752264310734,2.22,2996.8,2996.7,20.361]
[1752264311596,2.22,2996.8,2996.7,20.5274]
[1752264312326,2.22,2996.8,2996.7,26.00910403]
[1752264313325,0.002,2996.9,2996.8,15.00119268]
[1752264313629,1.11,2997.5,2997.4,10.0]
[1752264313814,6.66,2998.1,2998.0,2.2143]
[1752264314127,6.66,2998.1,2998.0,24.89356345]
[1752264314315,6.66,2998.1,2998.0,24.86020788]
[1752264315927,7.77,2998.1,2998.0,37.01120788]
[1752264316805,1.112,2998.5,2998.4,0.55]
[1752264317002,1.112,2998.5,2998.4,34.86420788]
[1752264317309,1.112,2998.5,2998.4,38.19931993]
[1752264318225,2.222,2998.5,2998.4,11.91934413]
[1752264318529,2.222,2998.5,2998.4,17.09634413]
[1752264319330,2.222,2998.5,2998.4,1.91934413]
[1752264319515,2.222,2998.5,2998.4,7.09634413]
[1752264320428,2.222,2998.5,2998.4,1.91934413]
[1752264320599,3.332,2998.5,2998.4,7.09734413]
[1752264321410,3.332,2998.5,2998.4,17.64734413]
[1752264323111,4.442,2998.5,2998.4,12.46934413]
[1752264323312,4.442,2998.5,2998.4,17.64534413]
[1752264323933,4.442,2998.5,2998.4,17.25874413]
[1752264324819,4.442,2998.5,2998.4,17.80874413]
[1752264325035,4.442,2998.5,2998.4,30.10465201]
[1752264325733,5.552,2998.5,2998.4,42.25065201]
[1752264326545,5.552,2998.5,2998.4,45.58576406]
[1752264328751,6.662,2998.5,2998.4,45.58576406]
[1752264329057,6.662,2998.5,2998.4,41.43076406]
[1752264331022,7.772,2998.5,2998.4,41.43076406]
[1752264331218,7.772,2998.5,2998.4,32.92265201]
[1752264331435,7.772,2998.5,2998.4,25.79074413]
[1752264332834,7.772,2998.5,2998.4,29.12585618]
[1752264333031,7.772,2998.5,2998.4,25.79074413]
[1752264333239,7.772,2998.5,2998.4,17.79974413]
[1752264333956,8.882,2998.5,2998.4,17.79974413]
[1752264334652,8.882,2998.5,2998.4,12.63574413]
[1752264334820,8.882,2998.5,2998.4,17.79874413]
[1752264335355,8.882,2998.5,2998.4,21.13385618]
[1752264335717,8.882,2998.5,2998.4,33.27685618]
[1752264336134,8.882,2998.5,2998.4,29.94174413]
[1752264336433,9.992,2998.5,2998.4,29.94174413]
[1752264336959,9.992,2998.5,2998.4,33.27685618]
[1752264337268,11.5339,2999.0,2998.4,33.27685618]
[1752264337269,11.102,2999.0,2998.7,0.55]
[1752264337421,7.66173617,2999.0,2998.9,26.18046388]
[1752264337620,13.32,2999.4,2999.3,13.88411129]
[1752264337872,13.32,2999.4,2999.3,32.88621917]
[1752264338266,13.32,2999.4,2999.3,33.05261917]
[1752264338754,14.43,2999.4,2999.3,33.05261917]
[1752264339646,14.43,2999.4,2999.3,33.19161592]
[1752264340255,14.43,2999.4,2999.3,33.56771923]